[Event "December 5 Early 2023"]
[Site "https://www.chess.com"]
[Date "2023.12.05"]
[Round "11"]
[White "Matinian, Nikita"]
[Black "Khamdamova, Afruza"]
[Result "1-0"]
[Board "48"]
[TimeControl "180+1"]
[WhiteFideId "24129100"]
[BlackFideId "14210444"]
[WhiteElo "2716"]
[BlackElo "2551"]
[WhiteTeam "FID"]
[BlackTeam "UZB"]
[WhiteClock "0:01:08"]
[BlackClock "0:00:36"]

1. e4 {[%clk 0:03:00]}  e5 {[%clk 0:03:00]} 2. Nf3 {[%clk 0:03:00]}  Nc6 {[%clk 0:03:00]} 3. Bc4 {[%clk 0:03:01]}  Nf6 {[%clk 0:03:01]} 4. d3 {[%clk 0:03:01]}  Bc5 {[%clk 0:03:01]} 5. O-O {[%clk 0:03:01]}  O-O {[%clk 0:03:01]} 6. c3 {[%clk 0:03:01]}  d6 {[%clk 0:03:01]} 7. Bg5 {[%clk 0:03:00]}  h6 {[%clk 0:03:00]} 8. Bh4 {[%clk 0:03:01]}  Be6 {[%clk 0:03:00]} 9. Nbd2 {[%clk 0:03:00]}  a5 {[%clk 0:02:59]} 10. Re1 {[%clk 0:02:54]}  Ba7 {[%clk 0:02:56]} 11. a4 {[%clk 0:02:46]}  Bxc4 {[%clk 0:02:53]} 12. Nxc4 {[%clk 0:02:46]}  Nb8 {[%clk 0:02:54]} 13. d4 {[%clk 0:02:45]}  Nbd7 {[%clk 0:02:53]} 14. dxe5 {[%clk 0:02:45]}  dxe5 {[%clk 0:02:52]} 15. Nfxe5 {[%clk 0:02:43]}  Nxe5 {[%clk 0:02:52]} 16. Nxe5 {[%clk 0:02:42]}  Re8 {[%clk 0:02:41]} 17. Ng4 {[%clk 0:02:20]}  Qxd1 {[%clk 0:02:34]} 18. Nxf6+ {[%clk 0:02:13]}  gxf6 {[%clk 0:02:34]} 19. Raxd1 {[%clk 0:02:13]}  Kg7 {[%clk 0:02:34]} 20. g4 {[%clk 0:02:04]}  Re7 {[%clk 0:02:31]} 21. Kg2 {[%clk 0:02:03]}  Rae8 {[%clk 0:02:30]} 22. f3 {[%clk 0:02:04]}  Bb6 {[%clk 0:02:29]} 23. Rd5 {[%clk 0:02:03]}  Re5 {[%clk 0:02:23]} 24. Red1 {[%clk 0:02:01]}  R8e7 {[%clk 0:02:10]} 25. Rxe5 {[%clk 0:01:50]}  Rxe5 {[%clk 0:02:10]} 26. Rd5 {[%clk 0:01:48]}  Re6 {[%clk 0:02:08]} 27. Rd7 {[%clk 0:01:42]}  Rc6 {[%clk 0:02:07]} 28. Rd3 {[%clk 0:01:25]}  Kf8 {[%clk 0:01:52]} 29. b3 {[%clk 0:01:25]}  Ke8 {[%clk 0:01:51]} 30. Be1 {[%clk 0:01:24]}  Bc5 {[%clk 0:01:46]} 31. Bd2 {[%clk 0:01:24]}  Bf8 {[%clk 0:01:45]} 32. c4 {[%clk 0:01:25]}  b6 {[%clk 0:01:44]} 33. Rd5 {[%clk 0:01:24]}  Re6 {[%clk 0:01:39]} 34. Kf1 {[%clk 0:01:23]}  c6 {[%clk 0:01:33]} 35. Rh5 {[%clk 0:01:23]}  Rd6 {[%clk 0:01:33]} 36. Ke2 {[%clk 0:01:23]}  Ke7 {[%clk 0:01:10]} 37. Bxh6 {[%clk 0:01:17]}  Bxh6 {[%clk 0:01:10]} 38. Rxh6 {[%clk 0:01:18]}  Rd8 {[%clk 0:01:09]} 39. h4 {[%clk 0:01:10]}  Rc8 {[%clk 0:01:03]} 40. g5 {[%clk 0:01:10]}  fxg5 {[%clk 0:01:03]} 41. hxg5 {[%clk 0:01:11]}  Kf8 {[%clk 0:00:59]} 42. Ke3 {[%clk 0:01:11]}  Kg7 {[%clk 0:00:59]} 43. f4 {[%clk 0:01:09]}  Rc7 {[%clk 0:00:59]} 44. f5 {[%clk 0:01:09]}  Rc8 {[%clk 0:00:53]} 45. Kf4 {[%clk 0:01:09]}  Rc7 {[%clk 0:00:52]} 46. e5 {[%clk 0:01:09]}  Rc8 {[%clk 0:00:45]} 47. f6+ {[%clk 0:01:08]}  Kg8 {[%clk 0:00:45]} 48. g6 {[%clk 0:01:08]}  fxg6 {[%clk 0:00:45]} 49. Rxg6+ {[%clk 0:01:09]}  Kf7 {[%clk 0:00:45]} 50. Kf5 {[%clk 0:01:08]}  Re8 {[%clk 0:00:36]} 51. e6+ {[%clk 0:01:08]} 1-0

[Event "December 5 Early 2023"]
[Site "https://www.chess.com"]
[Date "2023.12.05"]
[Round "11"]
[White "Novozhilov, Semen"]
[Black "Yashmetov, Mikhail"]
[Result "1-0"]
[Board "49"]
[TimeControl "180+1"]
[WhiteFideId "24289167"]
[BlackFideId "24198900"]
[WhiteElo "2713"]
[BlackElo "2544"]
[WhiteTeam "RUS"]
[BlackTeam "RUS"]
[WhiteClock "0:00:30"]
[BlackClock "0:00:00"]

1. d4 {[%clk 0:03:00]}  d5 {[%clk 0:02:50]} 2. c4 {[%clk 0:03:00]}  dxc4 {[%clk 0:02:50]} 3. e3 {[%clk 0:02:59]}  Nf6 {[%clk 0:02:50]} 4. Bxc4 {[%clk 0:02:59]}  e6 {[%clk 0:02:51]} 5. Nf3 {[%clk 0:03:00]}  c5 {[%clk 0:02:51]} 6. O-O {[%clk 0:03:00]}  Nc6 {[%clk 0:02:52]} 7. Qe2 {[%clk 0:02:59]}  Be7 {[%clk 0:02:52]} 8. Rd1 {[%clk 0:03:00]}  O-O {[%clk 0:02:53]} 9. Nc3 {[%clk 0:02:58]}  a6 {[%clk 0:02:52]} 10. dxc5 {[%clk 0:02:51]}  Qa5 {[%clk 0:02:49]} 11. a3 {[%clk 0:02:44]}  Qxc5 {[%clk 0:02:48]} 12. b4 {[%clk 0:02:43]}  Qh5 {[%clk 0:02:46]} 13. Bb2 {[%clk 0:02:43]}  b5 {[%clk 0:02:42]} 14. Bb3 {[%clk 0:02:40]}  Bb7 {[%clk 0:02:42]} 15. h3 {[%clk 0:02:36]}  Rac8 {[%clk 0:02:40]} 16. Rac1 {[%clk 0:02:30]}  Rfd8 {[%clk 0:02:29]} 17. Rxd8+ {[%clk 0:02:28]}  Rxd8 {[%clk 0:02:30]} 18. e4 {[%clk 0:02:18]}  Bd6 {[%clk 0:01:42]} 19. Rd1 {[%clk 0:02:12]}  Bc7 {[%clk 0:01:36]} 20. Rxd8+ {[%clk 0:02:09]}  Nxd8 {[%clk 0:01:37]} 21. Qe3 {[%clk 0:02:06]}  Nc6 {[%clk 0:01:20]} 22. Ne2 {[%clk 0:02:02]}  Ne5 {[%clk 0:01:11]} 23. Nd2 {[%clk 0:01:14]}  Neg4 {[%clk 0:00:33]} 24. hxg4 {[%clk 0:01:02]}  Qh2+ {[%clk 0:00:33]} 25. Kf1 {[%clk 0:01:02]}  Qh1+ {[%clk 0:00:29]} 26. Ng1 {[%clk 0:01:02]}  Nxg4 {[%clk 0:00:30]} 27. Qa7 {[%clk 0:00:55]}  Nh2+ {[%clk 0:00:15]} 28. Ke2 {[%clk 0:00:51]}  Qxg1 {[%clk 0:00:09]} 29. Qxb7 {[%clk 0:00:51]}  Bd6 {[%clk 0:00:10]} 30. Qc8+ {[%clk 0:00:43]}  Bf8 {[%clk 0:00:10]} 31. Be5 {[%clk 0:00:44]}  Ng4 {[%clk 0:00:03]} 32. Bd4 {[%clk 0:00:44]}  Qxg2 {[%clk 0:00:03]} 33. Bc5 {[%clk 0:00:42]}  h5 {[%clk 0:00:03]} 34. Qxf8+ {[%clk 0:00:41]}  Kh7 {[%clk 0:00:04]} 35. Qxf7 {[%clk 0:00:41]}  Nf6 {[%clk 0:00:05]} 36. Bc2 {[%clk 0:00:37]}  e5 {[%clk 0:00:03]} 37. Qe6 {[%clk 0:00:34]}  h4 {[%clk 0:00:03]} 38. Qf5+ {[%clk 0:00:34]}  Kh8 {[%clk 0:00:03]} 39. Qf3 {[%clk 0:00:31]}  Qg6 {[%clk 0:00:01]} 40. Qh3 {[%clk 0:00:28]}  Qh5+ {[%clk 0:00:01]} 41. Nf3 {[%clk 0:00:27]}  Ng4 {[%clk 0:00:01]} 42. Qxh4 {[%clk 0:00:26]}  Qxh4 {[%clk 0:00:02]} 43. Nxh4 {[%clk 0:00:27]}  Nf6 {[%clk 0:00:03]} 44. Ng6+ {[%clk 0:00:28]}  Kh7 {[%clk 0:00:03]} 45. Nxe5 {[%clk 0:00:28]}  Nh5 {[%clk 0:00:02]} 46. Nd3 {[%clk 0:00:28]}  Nf6 {[%clk 0:00:02]} 47. e5 {[%clk 0:00:29]}  Nd5 {[%clk 0:00:00]} 48. Nf4+ {[%clk 0:00:30]} 1-0

[Event "December 5 Early 2023"]
[Site "https://www.chess.com"]
[Date "2023.12.05"]
[Round "11"]
[White "Hambleton, Aman"]
[Black "Kopczynski, Michal"]
[Result "0-1"]
[Board "50"]
[TimeControl "180+1"]
[WhiteFideId "2606577"]
[BlackFideId "1124200"]
[WhiteElo "2706"]
[BlackElo "2520"]
[WhiteTeam "CAN"]
[BlackTeam "POL"]
[WhiteClock "0:00:04"]
[BlackClock "0:00:22"]

1. d4 {[%clk 0:03:00]}  Nf6 {[%clk 0:02:59]} 2. Bf4 {[%clk 0:03:00]}  g6 {[%clk 0:03:00]} 3. e3 {[%clk 0:02:56]}  Bg7 {[%clk 0:03:00]} 4. h3 {[%clk 0:02:56]}  d6 {[%clk 0:03:01]} 5. c3 {[%clk 0:02:57]}  O-O {[%clk 0:03:02]} 6. Nf3 {[%clk 0:02:58]}  Nfd7 {[%clk 0:03:02]} 7. Be2 {[%clk 0:02:58]}  Nc6 {[%clk 0:03:03]} 8. a4 {[%clk 0:02:58]}  e5 {[%clk 0:03:03]} 9. Bh2 {[%clk 0:02:58]}  f5 {[%clk 0:03:03]} 10. a5 {[%clk 0:02:58]}  f4 {[%clk 0:03:02]} 11. d5 {[%clk 0:02:52]}  Ne7 {[%clk 0:02:59]} 12. e4 {[%clk 0:02:53]}  h6 {[%clk 0:02:53]} 13. Nfd2 {[%clk 0:02:47]}  g5 {[%clk 0:02:52]} 14. Bg4 {[%clk 0:02:18]}  Nf6 {[%clk 0:02:51]} 15. Bxc8 {[%clk 0:02:18]}  Qxc8 {[%clk 0:02:52]} 16. f3 {[%clk 0:02:15]}  h5 {[%clk 0:02:48]} 17. Bg1 {[%clk 0:02:12]}  Ng6 {[%clk 0:02:42]} 18. Bf2 {[%clk 0:02:11]}  g4 {[%clk 0:02:40]} 19. hxg4 {[%clk 0:02:12]}  hxg4 {[%clk 0:02:40]} 20. Ke2 {[%clk 0:02:09]}  g3 {[%clk 0:02:35]} 21. Be1 {[%clk 0:02:09]}  Kf7 {[%clk 0:02:26]} 22. Nb3 {[%clk 0:01:45]}  Qd7 {[%clk 0:02:17]} 23. c4 {[%clk 0:01:44]}  Rh8 {[%clk 0:02:15]} 24. Rg1 {[%clk 0:01:27]}  Rh2 {[%clk 0:02:11]} 25. Kd3 {[%clk 0:01:26]}  Rah8 {[%clk 0:02:03]} 26. Nc3 {[%clk 0:01:18]}  Nh7 {[%clk 0:01:33]} 27. a6 {[%clk 0:01:03]}  c6 {[%clk 0:01:26]} 28. axb7 {[%clk 0:00:31]}  Qxb7 {[%clk 0:01:17]} 29. dxc6 {[%clk 0:00:28]}  Qxc6 {[%clk 0:01:14]} 30. Rxa7+ {[%clk 0:00:24]}  Kg8 {[%clk 0:01:05]} 31. Nd5 {[%clk 0:00:16]}  Ng5 {[%clk 0:00:59]} 32. Bb4 {[%clk 0:00:06]}  Ne6 {[%clk 0:00:49]} 33. Na5 {[%clk 0:00:04]}  Nc5+ {[%clk 0:00:38]} 34. Kc3 {[%clk 0:00:04]}  Qc8 {[%clk 0:00:32]} 35. Bxc5 {[%clk 0:00:02]}  Qxc5 {[%clk 0:00:32]} 36. b4 {[%clk 0:00:02]}  Qxa7 {[%clk 0:00:32]} 37. Nc6 {[%clk 0:00:02]}  Qf2 {[%clk 0:00:30]} 38. b5 {[%clk 0:00:01]}  Rxg2 {[%clk 0:00:30]} 39. Rxg2 {[%clk 0:00:02]}  Qxg2 {[%clk 0:00:31]} 40. b6 {[%clk 0:00:03]}  Kh7 {[%clk 0:00:28]} 41. b7 {[%clk 0:00:03]}  Nh4 {[%clk 0:00:26]} 42. Nb6 {[%clk 0:00:02]}  Qxf3+ {[%clk 0:00:24]} 43. Qxf3 {[%clk 0:00:02]}  Nxf3 {[%clk 0:00:25]} 44. Nc8 {[%clk 0:00:02]}  g2 {[%clk 0:00:24]} 45. b8=Q {[%clk 0:00:03]}  g1=Q {[%clk 0:00:24]} 46. Qxd6 {[%clk 0:00:02]}  Rxc8 {[%clk 0:00:21]} 47. Qd7 {[%clk 0:00:02]}  Rxc6 {[%clk 0:00:20]} 48. Qxc6 {[%clk 0:00:02]}  Qd4+ {[%clk 0:00:20]} 49. Kb4 {[%clk 0:00:02]}  Nd2 {[%clk 0:00:18]} 50. Qc8 {[%clk 0:00:01]}  Qxc4+ {[%clk 0:00:19]} 51. Qxc4 {[%clk 0:00:02]}  Nxc4 {[%clk 0:00:19]} 52. Kxc4 {[%clk 0:00:03]}  Kg6 {[%clk 0:00:19]} 53. Kd3 {[%clk 0:00:03]}  Kg5 {[%clk 0:00:19]} 54. Ke2 {[%clk 0:00:04]}  Kg4 {[%clk 0:00:20]} 55. Kf2 {[%clk 0:00:05]}  f3 {[%clk 0:00:21]} 56. Kg1 {[%clk 0:00:05]}  Kf4 {[%clk 0:00:21]} 57. Kf2 {[%clk 0:00:04]}  Kxe4 {[%clk 0:00:22]} 0-1

[Event "December 5 Early 2023"]
[Site "https://www.chess.com"]
[Date "2023.12.05"]
[Round "11"]
[White "Prohaszka, Peter"]
[Black "Bychkov, Vladimir"]
[Result "1-0"]
[Board "52"]
[TimeControl "180+1"]
[WhiteFideId "726265"]
[BlackFideId "24151513"]
[WhiteElo "2679"]
[BlackElo "2488"]
[WhiteTeam "HUN"]
[BlackTeam "RUS"]
[WhiteClock "0:00:09"]
[BlackClock "0:00:19"]

1. e4 {[%clk 0:03:00]}  c6 {[%clk 0:02:57]} 2. Nf3 {[%clk 0:02:56]}  d5 {[%clk 0:02:58]} 3. d3 {[%clk 0:02:57]}  Qc7 {[%clk 0:02:56]} 4. Nc3 {[%clk 0:02:51]}  Nf6 {[%clk 0:02:55]} 5. e5 {[%clk 0:02:47]}  Ng8 {[%clk 0:02:50]} 6. d4 {[%clk 0:02:47]}  Bf5 {[%clk 0:02:50]} 7. Ne2 {[%clk 0:02:46]}  h6 {[%clk 0:02:48]} 8. Ng3 {[%clk 0:02:44]}  Bd7 {[%clk 0:02:43]} 9. c3 {[%clk 0:02:39]}  c5 {[%clk 0:02:42]} 10. dxc5 {[%clk 0:02:39]}  e6 {[%clk 0:02:40]} 11. b4 {[%clk 0:02:38]}  a5 {[%clk 0:02:40]} 12. a3 {[%clk 0:02:25]}  Nc6 {[%clk 0:02:31]} 13. Bb5 {[%clk 0:02:09]}  Nxe5 {[%clk 0:02:23]} 14. Bxd7+ {[%clk 0:02:09]}  Nxd7 {[%clk 0:02:23]} 15. O-O {[%clk 0:02:10]}  Ngf6 {[%clk 0:02:21]} 16. Nd4 {[%clk 0:02:02]}  Be7 {[%clk 0:02:14]} 17. Re1 {[%clk 0:02:02]}  O-O {[%clk 0:02:14]} 18. Ngf5 {[%clk 0:01:59]}  Bd8 {[%clk 0:01:52]} 19. Nxh6+ {[%clk 0:01:18]}  gxh6 {[%clk 0:01:51]} 20. Bxh6 {[%clk 0:01:19]}  Be7 {[%clk 0:01:45]} 21. Qf3 {[%clk 0:01:10]}  Rfe8 {[%clk 0:01:36]} 22. Nb5 {[%clk 0:01:03]}  Qb8 {[%clk 0:01:32]} 23. Rad1 {[%clk 0:01:00]}  Bf8 {[%clk 0:01:31]} 24. Bxf8 {[%clk 0:00:46]}  Kxf8 {[%clk 0:01:30]} 25. Nd6 {[%clk 0:00:43]}  Rd8 {[%clk 0:01:29]} 26. Rd4 {[%clk 0:00:40]}  Ra6 {[%clk 0:01:19]} 27. Qf4 {[%clk 0:00:27]}  Rxd6 {[%clk 0:00:36]} 28. cxd6 {[%clk 0:00:28]}  Ke8 {[%clk 0:00:35]} 29. Re3 {[%clk 0:00:16]}  Ng8 {[%clk 0:00:30]} 30. Rxd5 {[%clk 0:00:10]}  axb4 {[%clk 0:00:30]} 31. axb4 {[%clk 0:00:10]}  Ndf6 {[%clk 0:00:30]} 32. Rd1 {[%clk 0:00:10]}  Qa7 {[%clk 0:00:26]} 33. g4 {[%clk 0:00:10]}  Kf8 {[%clk 0:00:23]} 34. g5 {[%clk 0:00:10]}  Nd5 {[%clk 0:00:24]} 35. Rxd5 {[%clk 0:00:09]}  exd5 {[%clk 0:00:25]} 36. g6 {[%clk 0:00:09]}  b6 {[%clk 0:00:21]} 37. Re7 {[%clk 0:00:08]}  Qa1+ {[%clk 0:00:20]} 38. Kg2 {[%clk 0:00:09]}  f6 {[%clk 0:00:19]} 39. g7# {[%clk 0:00:09]} 1-0

[Event "December 5 Early 2023"]
[Site "https://www.chess.com"]
[Date "2023.12.05"]
[Round "11"]
[White "Bolat, Inayat"]
[Black "Spata, German"]
[Result "1-0"]
[Board "53"]
[TimeControl "180+1"]
[WhiteFideId "13733125"]
[BlackFideId "113026"]
[WhiteElo "2439"]
[BlackElo "2649"]
[WhiteTeam "KAZ"]
[BlackTeam "ARG"]
[WhiteClock "0:00:17"]
[BlackClock "0:00:00"]

1. e4 {[%clk 0:03:00]}  e6 {[%clk 0:02:58]} 2. d4 {[%clk 0:02:59]}  d5 {[%clk 0:02:58]} 3. Nc3 {[%clk 0:03:00]}  dxe4 {[%clk 0:02:58]} 4. Nxe4 {[%clk 0:02:59]}  Nd7 {[%clk 0:02:58]} 5. Bd3 {[%clk 0:02:56]}  Ngf6 {[%clk 0:02:58]} 6. c3 {[%clk 0:02:56]}  c5 {[%clk 0:02:58]} 7. dxc5 {[%clk 0:02:53]}  Nxc5 {[%clk 0:02:55]} 8. Nxc5 {[%clk 0:02:51]}  Bxc5 {[%clk 0:02:55]} 9. Bg5 {[%clk 0:02:50]}  Qb6 {[%clk 0:02:30]} 10. Qe2 {[%clk 0:02:44]}  Bd7 {[%clk 0:02:25]} 11. Nf3 {[%clk 0:02:41]}  h6 {[%clk 0:02:03]} 12. Bh4 {[%clk 0:02:34]}  O-O-O {[%clk 0:01:52]} 13. Ne5 {[%clk 0:02:32]}  Rhf8 {[%clk 0:01:44]} 14. b4 {[%clk 0:02:32]}  Bxb4 {[%clk 0:01:31]} 15. O-O {[%clk 0:02:16]}  Bd6 {[%clk 0:01:09]} 16. Nc4 {[%clk 0:02:09]}  Qc7 {[%clk 0:01:09]} 17. Nxd6+ {[%clk 0:02:08]}  Qxd6 {[%clk 0:01:09]} 18. Bg3 {[%clk 0:02:08]}  Qc5 {[%clk 0:01:04]} 19. Rab1 {[%clk 0:02:07]}  Bc6 {[%clk 0:01:01]} 20. Bb5 {[%clk 0:02:04]}  Ne4 {[%clk 0:00:50]} 21. Bxc6 {[%clk 0:01:59]}  Qxc6 {[%clk 0:00:51]} 22. Rb4 {[%clk 0:01:39]}  Nxg3 {[%clk 0:00:50]} 23. hxg3 {[%clk 0:01:38]}  Kb8 {[%clk 0:00:49]} 24. Rfb1 {[%clk 0:01:31]}  Rd7 {[%clk 0:00:49]} 25. Qe5+ {[%clk 0:01:31]}  Ka8 {[%clk 0:00:40]} 26. Qxg7 {[%clk 0:01:22]}  Rb8 {[%clk 0:00:40]} 27. Qxh6 {[%clk 0:01:00]}  Qxc3 {[%clk 0:00:39]} 28. Qf4 {[%clk 0:01:00]}  e5 {[%clk 0:00:28]} 29. Qe4 {[%clk 0:00:54]}  Rd4 {[%clk 0:00:23]} 30. Rxb7 {[%clk 0:00:53]}  Qc1+ {[%clk 0:00:18]} 31. Rxc1 {[%clk 0:00:50]}  Rxe4 {[%clk 0:00:17]} 32. Rxf7 {[%clk 0:00:49]}  Ra4 {[%clk 0:00:14]} 33. Rc2 {[%clk 0:00:42]}  Re8 {[%clk 0:00:11]} 34. f3 {[%clk 0:00:41]}  e4 {[%clk 0:00:11]} 35. fxe4 {[%clk 0:00:39]}  Raxe4 {[%clk 0:00:12]} 36. Rcc7 {[%clk 0:00:32]}  Ra4 {[%clk 0:00:12]} 37. g4 {[%clk 0:00:30]}  Rxa2 {[%clk 0:00:12]} 38. g5 {[%clk 0:00:30]}  Ra6 {[%clk 0:00:07]} 39. Kh2 {[%clk 0:00:25]}  Rg8 {[%clk 0:00:05]} 40. Kh3 {[%clk 0:00:23]}  Kb8 {[%clk 0:00:05]} 41. Rce7 {[%clk 0:00:23]}  Ra4 {[%clk 0:00:02]} 42. g6 {[%clk 0:00:21]}  a5 {[%clk 0:00:02]} 43. g7 {[%clk 0:00:22]}  Rd4 {[%clk 0:00:01]} 44. Rf8+ {[%clk 0:00:19]}  Rd8 {[%clk 0:00:00]} 45. Ref7 {[%clk 0:00:17]} 1-0

[Event "December 5 Early 2023"]
[Site "https://www.chess.com"]
[Date "2023.12.05"]
[Round "11"]
[White "YurasovMat-2012"]
[Black "Narva, Mai"]
[Result "0-1"]
[Board "54"]
[TimeControl "180+1"]
[BlackFideId "4500512"]
[WhiteElo "2377"]
[BlackElo "2638"]
[BlackTeam "EST"]
[WhiteClock "0:00:01"]
[BlackClock "0:00:02"]

1. e4 {[%clk 0:03:00]}  c5 {[%clk 0:02:57]} 2. Nf3 {[%clk 0:02:59]}  Nc6 {[%clk 0:02:57]} 3. Bb5 {[%clk 0:02:54]}  d6 {[%clk 0:02:57]} 4. d4 {[%clk 0:02:53]}  cxd4 {[%clk 0:02:55]} 5. Nxd4 {[%clk 0:02:53]}  Bd7 {[%clk 0:02:55]} 6. O-O {[%clk 0:02:53]}  Nf6 {[%clk 0:02:53]} 7. Re1 {[%clk 0:02:50]}  e5 {[%clk 0:02:50]} 8. Nf3 {[%clk 0:02:47]}  Be7 {[%clk 0:02:49]} 9. Nc3 {[%clk 0:02:46]}  O-O {[%clk 0:02:49]} 10. Bg5 {[%clk 0:02:45]}  a6 {[%clk 0:02:48]} 11. Bf1 {[%clk 0:02:45]}  Bg4 {[%clk 0:02:46]} 12. h3 {[%clk 0:02:44]}  Bh5 {[%clk 0:02:46]} 13. Bxf6 {[%clk 0:02:42]}  Bxf6 {[%clk 0:02:46]} 14. Nd5 {[%clk 0:02:41]}  b5 {[%clk 0:02:30]} 15. c3 {[%clk 0:02:40]}  h6 {[%clk 0:02:28]} 16. Be2 {[%clk 0:02:39]}  Bg6 {[%clk 0:02:26]} 17. Bd3 {[%clk 0:02:36]}  Bg5 {[%clk 0:02:25]} 18. Qe2 {[%clk 0:02:34]}  Ne7 {[%clk 0:02:25]} 19. Ne3 {[%clk 0:02:18]}  Bxe3 {[%clk 0:02:19]} 20. Qxe3 {[%clk 0:02:19]}  f5 {[%clk 0:02:19]} 21. exf5 {[%clk 0:02:19]}  Nxf5 {[%clk 0:02:06]} 22. Qe4 {[%clk 0:02:16]}  Qf6 {[%clk 0:01:23]} 23. Qe2 {[%clk 0:02:09]}  Rae8 {[%clk 0:01:12]} 24. Be4 {[%clk 0:02:03]}  Kh8 {[%clk 0:01:11]} 25. Rad1 {[%clk 0:02:02]}  Ne7 {[%clk 0:01:08]} 26. Qd3 {[%clk 0:01:49]}  Bxe4 {[%clk 0:00:49]} 27. Qxe4 {[%clk 0:01:50]}  Ng6 {[%clk 0:00:43]} 28. Kh1 {[%clk 0:01:05]}  Nf4 {[%clk 0:00:42]} 29. Nh2 {[%clk 0:01:03]}  d5 {[%clk 0:00:41]} 30. Qe3 {[%clk 0:01:01]}  e4 {[%clk 0:00:39]} 31. Ng4 {[%clk 0:00:52]}  Qf5 {[%clk 0:00:37]} 32. Qg3 {[%clk 0:00:48]}  Nd3 {[%clk 0:00:34]} 33. Rf1 {[%clk 0:00:46]}  Nxb2 {[%clk 0:00:33]} 34. Rd4 {[%clk 0:00:44]}  Nc4 {[%clk 0:00:28]} 35. Rfd1 {[%clk 0:00:40]}  Rd8 {[%clk 0:00:20]} 36. Kg1 {[%clk 0:00:30]}  Nb2 {[%clk 0:00:16]} 37. R1d2 {[%clk 0:00:28]}  Nd3 {[%clk 0:00:14]} 38. Ne3 {[%clk 0:00:27]}  Qh5 {[%clk 0:00:14]} 39. Qc7 {[%clk 0:00:17]}  Nf4 {[%clk 0:00:12]} 40. Kh2 {[%clk 0:00:13]}  Nd3 {[%clk 0:00:11]} 41. Kg1 {[%clk 0:00:12]}  Kh7 {[%clk 0:00:11]} 42. Qc6 {[%clk 0:00:09]}  Rf6 {[%clk 0:00:10]} 43. Qc7 {[%clk 0:00:08]}  Rdd6 {[%clk 0:00:09]} 44. Qe7 {[%clk 0:00:06]}  Nf4 {[%clk 0:00:07]} 45. Kh2 {[%clk 0:00:05]}  Qg5 {[%clk 0:00:06]} 46. g3 {[%clk 0:00:03]}  Nd3 {[%clk 0:00:05]} 47. Qe8 {[%clk 0:00:01]}  Nxf2 {[%clk 0:00:04]} 48. Nxd5 {[%clk 0:00:01]}  e3 {[%clk 0:00:02]} 49. Nxe3 {[%clk 0:00:01]}  Qxe3 {[%clk 0:00:02]} 50. Rxd6 {[%clk 0:00:01]}  Qf3 {[%clk 0:00:02]} 51. Qe2 {[%clk 0:00:01]}  Qh1# {[%clk 0:00:02]} 0-1

[Event "December 5 Early 2023"]
[Site "https://www.chess.com"]
[Date "2023.12.05"]
[Round "11"]
[White "Molina, Roberto Junio Brito"]
[Black "Janaszak, Dawid"]
[Result "1-0"]
[Board "56"]
[TimeControl "180+1"]
[WhiteFideId "2109450"]
[BlackFideId "1119206"]
[WhiteElo "2787"]
[BlackElo "2598"]
[WhiteTeam "BRA"]
[BlackTeam "POL"]
[WhiteClock "0:00:12"]
[BlackClock "0:00:03"]

1. d4 {[%clk 0:03:00]}  d5 {[%clk 0:02:57]} 2. c4 {[%clk 0:03:00]}  e6 {[%clk 0:02:57]} 3. Nc3 {[%clk 0:03:01]}  c5 {[%clk 0:02:57]} 4. cxd5 {[%clk 0:03:01]}  cxd4 {[%clk 0:02:57]} 5. Qa4+ {[%clk 0:03:01]}  Bd7 {[%clk 0:02:56]} 6. Qxd4 {[%clk 0:03:01]}  exd5 {[%clk 0:02:55]} 7. Qxd5 {[%clk 0:03:02]}  Nc6 {[%clk 0:02:54]} 8. Qd1 {[%clk 0:03:01]}  Nf6 {[%clk 0:02:51]} 9. Nf3 {[%clk 0:03:02]}  Bc5 {[%clk 0:02:50]} 10. e3 {[%clk 0:03:02]}  Qe7 {[%clk 0:02:50]} 11. Be2 {[%clk 0:03:02]}  O-O-O {[%clk 0:02:50]} 12. O-O {[%clk 0:03:03]}  g5 {[%clk 0:02:49]} 13. Nd4 {[%clk 0:02:59]}  g4 {[%clk 0:02:41]} 14. a3 {[%clk 0:02:59]}  h5 {[%clk 0:02:38]} 15. b4 {[%clk 0:02:59]}  Bd6 {[%clk 0:02:36]} 16. Ncb5 {[%clk 0:02:56]}  Bb8 {[%clk 0:02:30]} 17. Bb2 {[%clk 0:02:53]}  h4 {[%clk 0:02:25]} 18. Rc1 {[%clk 0:02:52]}  g3 {[%clk 0:02:23]} 19. Bf3 {[%clk 0:02:39]}  Ne4 {[%clk 0:02:09]} 20. Nxc6 {[%clk 0:01:52]}  bxc6 {[%clk 0:01:27]} 21. Bxh8 {[%clk 0:01:48]}  gxf2+ {[%clk 0:01:22]} 22. Rxf2 {[%clk 0:01:37]}  Nxf2 {[%clk 0:01:22]} 23. Kxf2 {[%clk 0:01:35]}  Rxh8 {[%clk 0:01:08]} 24. Nd4 {[%clk 0:01:16]}  Re8 {[%clk 0:01:00]} 25. Qd3 {[%clk 0:01:12]}  Bxh2 {[%clk 0:00:32]} 26. Nxc6 {[%clk 0:01:03]}  Bg3+ {[%clk 0:00:29]} 27. Ke2 {[%clk 0:00:59]}  Bxc6 {[%clk 0:00:24]} 28. Rxc6+ {[%clk 0:00:56]}  Bc7 {[%clk 0:00:23]} 29. Qa6+ {[%clk 0:00:44]}  Kd8 {[%clk 0:00:17]} 30. Qxa7 {[%clk 0:00:38]}  Qe5 {[%clk 0:00:12]} 31. Qc5 {[%clk 0:00:08]}  Qb2+ {[%clk 0:00:11]} 32. Qc2 {[%clk 0:00:09]}  Qxc2+ {[%clk 0:00:05]} 33. Rxc2 {[%clk 0:00:09]}  Bb6 {[%clk 0:00:06]} 34. Rc3 {[%clk 0:00:09]}  f5 {[%clk 0:00:05]} 35. Kd2 {[%clk 0:00:08]}  Re7 {[%clk 0:00:04]} 36. a4 {[%clk 0:00:08]}  Rd7+ {[%clk 0:00:04]} 37. Rd3 {[%clk 0:00:08]}  Rxd3+ {[%clk 0:00:02]} 38. Kxd3 {[%clk 0:00:09]}  Kc7 {[%clk 0:00:02]} 39. a5 {[%clk 0:00:09]}  Ba7 {[%clk 0:00:03]} 40. e4 {[%clk 0:00:10]}  fxe4+ {[%clk 0:00:02]} 41. Bxe4 {[%clk 0:00:11]}  Kd6 {[%clk 0:00:02]} 42. Kc4 {[%clk 0:00:11]}  Ke5 {[%clk 0:00:03]} 43. Ba8 {[%clk 0:00:12]}  Kd6 {[%clk 0:00:03]} 44. b5 {[%clk 0:00:12]}  Kc7 {[%clk 0:00:03]} 45. Bf3 {[%clk 0:00:12]}  Kd6 {[%clk 0:00:03]} 46. b6 {[%clk 0:00:12]}  Bb8 {[%clk 0:00:04]} 47. Kb5 {[%clk 0:00:12]}  h3 {[%clk 0:00:03]} 48. gxh3 {[%clk 0:00:12]} 1-0